fUSD/lending_fUSD_20240213
["ID","MTS","AMOUNT","RATE_DAILY","PERIOD"]
[313928954,1707834637763,-500.75,0.00028767,2]
[313928956,1707834637772,-500.0,0.00028767,2]
[313928958,1707834637782,-512.81,0.00028767,2]
[313928960,1707834637791,-500.0,0.00028767,2]
[313928962,1707834637801,-500.0,0.00028767,2]
[313928964,1707834637810,-500.0,0.00028767,2]
[313928966,1707834637819,-500.0,0.00028767,2]
[313928968,1707834637828,-500.0,0.00028767,2]
[313928971,1707834637837,-500.0,0.00028767,2]
[313928974,1707834637846,-500.0,0.00028767,2]
[313928977,1707834637855,-500.0,0.00028767,2]
[313928979,1707834637864,-500.0,0.00028767,2]
[313928981,1707834637873,-500.0,0.00028767,2]
[313928983,1707834637882,-154.8373976,0.00028767,2]
[313928985,1707834637891,-500.0,0.00028767,2]
[313928987,1707834637900,-500.0,0.00028767,2]
[313928989,1707834637909,-500.0,0.00028767,2]
[313928991,1707834637918,-243.39905207,0.00028767,2]
[313928992,1707834637927,-500.0,0.00028767,2]
[313928994,1707834637939,-637.9354899,0.00028767,2]
[313928995,1707834637948,-373.09622719,0.00028767,2]
[313928997,1707834637957,-500.0,0.00028767,2]
[313928999,1707834637966,-532.59677335,0.00028767,2]
[313929000,1707834637975,-518.19549821,0.00028767,2]
[313929002,1707834637984,-500.0,0.00028767,2]
[313929003,1707834637993,-500.0,0.00028767,2]
[313929005,1707834638002,-500.0,0.00028767,2]
[313929007,1707834638011,-500.0,0.00028767,2]
[313929008,1707834638021,-509.05222861,0.00028767,2]
[313929010,1707834638030,-166.42584174,0.00028767,2]
[313929011,1707834638039,-324.37,0.00028767,2]
[313929013,1707834638048,-153.60166245,0.00028767,2]
[313929014,1707834638058,-500.0,0.00028767,2]
[313929016,1707834638067,-500.0,0.00028767,2]
[313929018,1707834638075,-500.0,0.00028767,2]
[313929019,1707834638084,-326.94,0.00028767,2]
[313929021,1707834638093,-500.0,0.00028767,2]
[313929022,1707834638102,-500.0,0.00028767,2]
[313929024,1707834638111,-500.0,0.00028767,2]
[313929025,1707834638120,-500.0,0.00028767,2]
[313929027,1707834638129,-500.0,0.00028767,2]
[313929029,1707834638138,-502.07200948,0.00028767,2]
[313929030,1707834638147,-500.0,0.00028767,2]
[313929032,1707834638156,-1907.42,0.00028767,2]
[313929033,1707834638165,-500.0,0.00028767,2]
[313929035,1707834638174,-23534.8981,0.00028797,2]
[313929037,1707834638185,-27269.2417,0.00028797,2]
[313929038,1707834638194,-150.0,0.000288,2]
[313929040,1707834638203,-1464.55730609,0.00028884,2]
[313929042,1707834638212,-13352.41037712,0.00028884,2]
[313929044,1707834638221,-537.54,0.00028888,2]
[313929045,1707834638230,-402.66357897,0.00028889,2]
[313929047,1707834638239,-155.0,0.00028893,2]
[313929049,1707834638248,-212.47602907,0.00028893,2]
[313929050,1707834638257,-202.13886159,0.00028893,2]
[313929052,1707834638266,-312.92960044,0.00028893,2]
[313929053,1707834638276,-1619.21244694,0.00028893,2]
[313929054,1707834638285,-4703.26759911,0.00028894,2]
[313929055,1707834638295,-253.15263832,0.00028896,4]
[313929056,1707834638303,-155.0,0.00028896,2]
[313929058,1707834638313,-19085.77689534,0.00028896,2]
[313929060,1707834638324,-155.0,0.00028897,2]
[313929062,1707834638338,-158.80278134,0.00028897,2]
[313929064,1707834638348,-54408.7216,0.00028898,2]
[313929066,1707834638358,-1000.0,0.00028898,2]
[313929068,1707834638366,-17644.9602056,0.00028899,2]
[313929070,1707834638376,-695.63,0.00028922,2]
[313929072,1707834638385,-150.0,0.00028977,20]
[313929074,1707834638394,-500.0,0.00028999,2]
[313929076,1707834638403,-500.0,0.00028999,2]
[313929078,1707834638412,-450.0,0.00029,3]
[313929080,1707834638422,-500.0,0.00029041,2]
[313929082,1707834638432,-500.0,0.00029041,2]
[313929084,1707834638442,-500.0,0.00029041,2]
[313929086,1707834638451,-500.0,0.00029041,2]
[313929088,1707834638459,-500.0,0.00029041,2]
[313929090,1707834638468,-500.0,0.00029041,2]
[313929092,1707834638476,-500.0,0.00029041,2]
[313929094,1707834638486,-243.44710676,0.00029041,2]
[313929096,1707834638495,-283.34,0.00029041,2]
[313929098,1707834638504,-500.0,0.00029041,2]
[313929100,1707834638514,-219.96,0.00029041,2]
[313929102,1707834638523,-278.36,0.00029041,2]
[313929104,1707834638532,-571.22874377,0.00029041,2]
[313929106,1707834638542,-500.0,0.00029041,2]
[313929108,1707834638552,-152.06017114,0.00029041,2]
[313929111,1707834638561,-231.77,0.00029041,2]
[313929114,1707834638571,-398.12,0.00029041,2]
[313929117,1707834638580,-500.0,0.00029041,2]
[313929120,1707834638590,-236.61,0.00029041,2]
[313929122,1707834638599,-500.0,0.00029041,2]
[313929124,1707834638608,-500.0,0.00029041,2]
[313929126,1707834638619,-500.0,0.00029041,2]
[313929129,1707834638628,-500.0,0.00029041,2]
[313929132,1707834638638,-500.0,0.00029041,2]
[313929135,1707834638647,-222.48,0.00029041,2]
[313929137,1707834638656,-552.55,0.00029041,2]
[313929140,1707834638666,-500.0,0.00029041,2]
[313929142,1707834638675,-535.48,0.00029041,2]
[313929144,1707834638687,-500.0,0.00029041,2]
[313929145,1707834638696,-1907.42,0.00029041,2]
[313929147,1707834638705,-850.54602537,0.00029045,2]
[313929149,1707834638713,-500.0,0.00029098,2]
[313929150,1707834638722,-476.35109648,0.00029098,2]
[313929152,1707834638731,-203.08575862,0.00029098,2]
[313929154,1707834638740,-508.00862254,0.00029098,2]
[313929156,1707834638749,-529.84402933,0.00029098,2]
[313929158,1707834638758,-500.0,0.00029098,2]
[313929160,1707834638767,-500.0,0.00029098,2]
[313929162,1707834638776,-500.0,0.00029098,2]
[313929164,1707834638785,-406.08816139,0.00029098,2]
[313929166,1707834638794,-263.95331938,0.00029098,2]
[313929168,1707834638804,-242.64229742,0.00029098,2]
[313929170,1707834638813,-295.83,0.000291,2]
[313929172,1707834638822,-541.64325533,0.00029273,2]
[313929174,1707834638831,-500.0,0.00029315,2]
[313929176,1707834638840,-500.0,0.00029315,2]
[313929178,1707834638849,-180.02044257,0.00029315,2]
[313929180,1707834638858,-500.0,0.00029315,2]
[313929182,1707834638867,-500.0,0.00029315,2]
[313929184,1707834638877,-500.0,0.00029315,2]
[313929186,1707834638886,-500.0,0.00029315,2]
[313929188,1707834638895,-500.0,0.00029315,2]
[313929190,1707834638904,-500.0,0.00029315,2]
[313929192,1707834638913,-500.0,0.00029315,2]
[313929194,1707834638923,-500.0,0.00029315,2]
[313929196,1707834638933,-405.71680486,0.00029315,2]
[313929198,1707834638942,-500.0,0.00029315,2]
[313929200,1707834638951,-1907.42,0.00029315,2]
[313929202,1707834638961,-155.45994787,0.00029322,2]
[313929204,1707834638970,-500.0,0.00029372,2]
[313929206,1707834638979,-519.80554126,0.00029372,2]
[313929208,1707834638989,-207.34389976,0.00029372,2]
[313929210,1707834638998,-319.78,0.00029508,2]
[313929212,1707834639007,-496.87335613,0.00029589,2]
[313929214,1707834639016,-496.7975018,0.00029589,2]
[313929216,1707834639026,-500.0,0.00029589,2]
[313929218,1707834639035,-500.0,0.00029589,2]
[313929220,1707834639044,-500.0,0.00029589,2]
[313929222,1707834639053,-500.0,0.00029589,2]
[313929224,1707834639062,-500.0,0.00029589,2]
[313929226,1707834639070,-545.41838644,0.00029589,2]
[313929228,1707834639079,-243.18,0.00029589,2]
[313929230,1707834639088,-500.0,0.00029589,2]
[313929232,1707834639097,-500.0,0.00029589,2]
[313929234,1707834639106,-1907.42,0.00029589,2]
[313929236,1707834639115,-500.0,0.00029646,2]
[313929238,1707834639124,-304.37,0.00029661,2]
[313929240,1707834639132,-17644.9602056,0.00029663,2]
[313929242,1707834639141,-189.72226694,0.00029863,2]
[313929244,1707834639150,-500.0,0.00029863,2]
[313929246,1707834639159,-500.0,0.00029863,2]
[313929248,1707834639168,-193.73,0.00029863,2]
[313929250,1707834639177,-500.0,0.00029863,2]
[313929252,1707834639189,-500.0,0.00029863,2]
[313929254,1707834639198,-399.15964431,0.00029863,2]
[313929256,1707834639206,-1907.42,0.00029863,2]
[313929258,1707834639215,-402.66357897,0.00029877,2]
[313929260,1707834639223,-197.95026175,0.000299,2]
[313929262,1707834639233,-8055.0,0.000299,2]
[313929263,1707834639242,-241.6779065,0.000299,2]
[313929265,1707834639251,-638.94,0.0002992,2]
[313929267,1707834639263,-201.0,0.0002996,6]
[313929269,1707834639272,-1464.55730609,0.00029971,2]
[313929271,1707834639282,-13352.41037712,0.00029971,2]
[313929273,1707834639291,-83653.38615242,0.00029977,7]
[313929275,1707834639300,-4815.95681686,0.00029977,7]
[313929277,1707834639309,-10569.92219804,0.00029977,7]
[313929279,1707834639319,-500.0,0.00029999,3]
[313929281,1707834639329,-5231.86172563,0.0003,2]
[313929283,1707834639338,-623.85914324,0.0003,4]
[313929285,1707834639351,-73383.11595309,0.0003,4]
[313929287,1707834639360,-155.0,0.0003,2]
[313929290,1707834639369,-681.36133437,0.0003,4]
[313929291,1707834639378,-2672.18747213,0.0003,4]
[313929293,1707834639387,-406.39745449,0.0003,4]
[313929295,1707834639396,-1176.3664217,0.0003,4]
[313929297,1707834639405,-5324.60769872,0.0003,4]
[313929299,1707834639414,-979.14167988,0.0003,4]
[313929301,1707834639424,-2000.0,0.0003,2]
[313929303,1707834639434,-1974.86666855,0.0003,4]
[313929305,1707834639443,-23988.0,0.0003,2]
[313929307,1707834639452,-110138.8803572,0.0003,2]
[313929309,1707834639461,-398.52857614,0.00030136,2]
[313929311,1707834639470,-500.0,0.00030136,2]
[313929313,1707834639479,-366.96024407,0.00030136,2]
[313929315,1707834639488,-500.0,0.00030136,2]
[313929317,1707834639498,-362.5,0.00030136,2]
[313929319,1707834639507,-1907.42,0.00030136,2]
[313929321,1707834639516,-281.89511376,0.00030137,7]
[313929323,1707834639525,-150.41,0.00030137,2]
[313929325,1707834639534,-155.45994787,0.00030167,2]
[313929327,1707834639543,-850.54602537,0.0003029,2]
[313929329,1707834639553,-261.38574536,0.00030347,20]
[313929331,1707834639563,-500.0,0.0003041,2]
[313929333,1707834639572,-1907.42,0.0003041,2]
[313929335,1707834639581,-17644.9602056,0.00030426,2]
[313929336,1707834639590,-17506.0,0.000305,3]
[313929337,1707834639599,-500.0,0.00030684,2]
[313929338,1707834639608,-1907.42,0.00030684,2]
[313929339,1707834639617,-1000.0,0.000307,2]
[313929340,1707834639627,-153.26,0.000308,2]
[313929341,1707834639636,-153.26,0.000308,2]
[313929342,1707834639645,-178.57217563,0.00030879,2]
[313929343,1707834639654,-1000.0,0.00030879,2]
[313929344,1707834639663,-7908.11669018,0.000309,2]
[313929345,1707834639673,-500.0,0.00030958,2]
[313929346,1707834639684,-1907.42,0.00030958,2]
[313929347,1707834639693,-252.56490569,0.00031,4]
[313929348,1707834639702,-17506.0,0.00031,5]
[313929349,1707834639711,-500.0,0.00031,3]
[313929350,1707834639720,-155.45994787,0.00031011,2]
[313929351,1707834639729,-151.0,0.00031039,120]
[313929354,1707834639739,-13352.41037712,0.00031058,2]
[313929356,1707834639748,-1464.55730609,0.00031059,2]
[313929357,1707834639758,-319.78,0.00031152,2]
[313929358,1707834639767,-537.54,0.00031152,2]
[313929359,1707834639776,-17644.9602056,0.0003119,2]
[313929360,1707834639785,-500.0,0.00031232,2]
[313929361,1707834639795,-1907.42,0.00031232,2]
[313929362,1707834639804,-500.0,0.00031506,2]
[313929363,1707834639813,-1907.42,0.00031506,2]
[313929364,1707834639822,-850.54602537,0.00031535,2]
[313929365,1707834639832,-180.0,0.00031644,2]
[313929366,1707834639841,-151.0,0.00031672,30]
[313929367,1707834639850,-500.0,0.0003178,2]
[313929368,1707834639860,-1907.42,0.0003178,2]
[313929369,1707834639870,-150.90378837,0.00031797,2]
[313929370,1707834639879,-218403.885295,0.000318,3]
[313929371,1707834639888,-155.45994787,0.00031856,2]
[313929372,1707834639897,-155.0,0.000319,2]
[313929373,1707834639907,-489.97894041,0.000319,2]
[313929374,1707834639916,-17644.9602056,0.00031954,3]
[313929375,1707834639926,-500.0,0.00032054,2]
[313929376,1707834639937,-1907.42,0.00032054,2]
[313929377,1707834639947,-187.08,0.0003207,2]
[313929378,1707834639956,-13352.41037712,0.00032145,2]
[313929379,1707834639965,-1464.55730609,0.00032146,2]
[313929380,1707834639975,-201.0,0.00032271,10]
[313929381,1707834639984,-151.0,0.00032319,7]
[313929382,1707834639994,-500.0,0.00032328,2]
[313929383,1707834640003,-1237.6782431,0.00032514,2]
[313929384,1707834640012,-695.63,0.00032537,2]
[313929385,1707834640022,-842.432,0.00032602,2]
[313929386,1707834640031,-932.755,0.00032602,2]
[313929387,1707834640041,-218.168,0.00032602,2]
[313929388,1707834640050,-1233.0,0.00032602,2]
[313929389,1707834640060,-150.0,0.00032602,2]
[313929390,1707834640070,-291.071,0.00032602,2]
[313929391,1707834640080,-500.0,0.00032602,2]
[313929392,1707834640090,-153.26,0.000327,2]
[313929393,1707834640100,-153.26,0.000327,2]
[313929394,1707834640109,-153.26,0.000327,2]
[313929395,1707834640119,-153.26,0.000327,2]
[313929396,1707834640129,-198.94110425,0.000327,2]
[313929397,1707834640140,-1230.75620642,0.000327,2]
[313929398,1707834640179,-155.45994787,0.000327,2]
[313929399,1707834640190,-1510.31330638,0.0003271,2]
[313929400,1707834640199,-204.94330117,0.0003271,6]
[313929401,1707834640208,-17644.9602056,0.00032718,4]
[313929402,1707834640217,-1237.6782431,0.00032723,2]
[313929403,1707834640228,-3340.7595,0.00032777,3]
[313929404,1707834640238,-222.6601343,0.0003278,2]
[313929405,1707834640247,-9933.3787,0.0003278,2]
[313929406,1707834640258,-200.31907133,0.0003278,2]
[313929407,1707834640267,-850.54602537,0.0003278,2]
[313929408,1707834640277,-331.97247777,0.0003278,21]
[313929409,1707834640287,-319.78,0.00032796,2]
[313929410,1707834640296,-3000.0,0.000328,13]
[313929411,1707834640305,-22974.84392653,0.000328,2]
[313929412,1707834640314,-90763.01,0.000328,2]
[313929413,1707834640323,-6089.87410567,0.000328,7]
[313929414,1707834640333,-34806.07,0.000328,2]
[313929415,1707834640342,-3000.0,0.0003281,13]
[313929416,1707834640352,-5475.95891,0.0003282,13]
[313929417,1707834640361,-871.84600621,0.00032876,3]
[313929418,1707834640370,-500.0,0.00032876,2]
[313929419,1707834640380,-160.841,0.00032877,7]
[313929420,1707834640390,-160.841,0.00032877,7]
[313929421,1707834640399,-160.841,0.00032877,7]
[313929422,1707834640408,-160.841,0.00032877,7]
[313929423,1707834640417,-151.0,0.00032877,5]
[313929424,1707834640427,-151.0,0.00032877,5]
[313929425,1707834640439,-153.334576,0.00032877,7]
[313929426,1707834640448,-152.389971,0.00032877,7]
[313929427,1707834640457,-150.0,0.00032877,2]
[313929428,1707834640466,-2780.0,0.00032877,4]
[313929429,1707834640475,-156.411887,0.00032877,7]
[313929430,1707834640484,-151.0,0.00032877,7]
[313929431,1707834640494,-151.0,0.00032877,7]
[313929432,1707834640503,-151.0,0.00032877,7]
[313929433,1707834640512,-151.0,0.00032877,7]
[313929434,1707834640521,-151.0,0.00032877,7]
[313929436,1707834640651,-151.0,0.00032877,7]
[313929437,1707834640661,-151.0,0.00032877,7]
[313929438,1707834640670,-218.748934,0.00032877,7]
[313929439,1707834640679,-218.748934,0.00032877,7]
[313929440,1707834640691,-1056.32651859,0.00032877,2]
[313929441,1707834640700,-588.907808,0.00032878,4]
[313929442,1707834640709,-2331.62604922,0.00032878,4]
[313929443,1707834640718,-611.04787709,0.00032879,4]
[313929444,1707834640727,-548.5123558,0.00032879,30]
[313929445,1707834640737,-5000.0,0.00032879,2]
[313929446,1707834640746,-1000.0,0.00032879,2]
[313929447,1707834640756,-150.0,0.00032879,2]
[313929448,1707834640765,-150.0,0.00032879,2]
[313929449,1707834640775,-150.0,0.00032879,2]
[313929450,1707834640784,-150.0,0.00032879,2]
[313929451,1707834640794,-1566.28455818,0.0003288,3]
[313929452,1707834640804,-687.00897585,0.0003288,3]
[313929453,1707834640813,-614526.58746359,0.0003288,2]
[313929454,1707834640831,-5294.08445969,0.0003288,2]
[313929455,1707834640843,-300.0,0.0003288,2]
[313929456,1707834640855,-12227.25,0.0003288,2]
[313929457,1707834640867,-15177.38680857,0.0003288,2]
[313929458,1707834640879,-44041.54325826,0.0003288,2]
[313929459,1707834640891,-1312.90177721,0.0003288,2]
[313929460,1707834640902,-691.59727248,0.0003288,2]
[313929461,1707834640930,-54111.54590052,0.0003288,2]
[313929462,1707834641068,-341.58,0.00027335,2]
[313929463,1707834641078,-500.0,0.00028767,2]
[313929464,1707834641087,-500.0,0.00028767,2]
[313929465,1707834641097,-153.77,0.00029041,2]
[313929466,1707834641106,-1907.42,0.00032328,2]
[313929467,1707834641115,-1907.42,0.00032602,2]
[313929468,1707834641124,-1907.42,0.00032876,2]
[313929469,1707834641133,-1272.18513644,0.0003288,2]
[313929470,1707834641144,-74116.64273255,0.0003288,2]
[313929471,1707834641156,-1966990.14446569,0.0003288,2]
[313929472,1707834641167,-2197.69064806,0.0003288,2]
[313929473,1707834641179,-1947.08,0.0003288,2]
[313929474,1707834641194,-5443.54531557,0.0003288,2]
[313929475,1707834641205,-5455.74793376,0.0003288,2]
[313929476,1707834641217,-992.8693487,0.0003288,2]
[313929477,1707834641228,-986.02583173,0.0003288,2]
[313929478,1707834641239,-16335.58867465,0.0003288,2]
[313929479,1707834641254,-499.99,0.00028884,2]
[313929480,1707834641264,-48500.01,0.0003288,2]
[313929481,1707834641319,-3652.12694476,0.0003288,2]
[313929482,1707834641331,-9625.0154,0.0003288,2]
[313929483,1707834641343,-399.13216622,0.0003288,2]
[313929484,1707834641355,-2434.05,0.0003288,2]
[313929485,1707834641383,-6405.24511154,0.0003288,2]
[313929486,1707834641394,-1905.97242212,0.0003288,2]
[313929487,1707834641409,-699.3959997,0.0003288,2]
[313929488,1707834641425,-4883.80368013,0.0003288,2]
[313929489,1707834641441,-2475.50688256,0.0003288,2]
[313929490,1707834641452,-21975.75,0.0003288,2]
[313929491,1707834641464,-1446.12450458,0.0003288,2]
[313929492,1707834641475,-8837.34308,0.0003288,2]
[313929493,1707834641486,-310.49943042,0.0003288,2]
[313929494,1707834641497,-12199.48,0.0003288,2]
[313929495,1707834641672,-1062.73661376,0.00027796,2]
[313929496,1707834641686,-734.258525,0.00027796,2]
[313929497,1707834641698,-1383.69910695,0.00027796,2]
[313929498,1707834641707,-218.748934,0.00032877,7]
[313929499,1707834641717,-218.748934,0.00032877,7]
[313929501,1707834641725,-7992.40302505,0.0003288,2]
[313929503,1707834641737,-523.56304,0.0003288,2]
[313929511,1707834641797,-281.997,0.0003288,2]
[313929513,1707834641809,-48700.0,0.0003288,2]
[313929515,1707834641820,-10292.2120861,0.0003288,2]
[313929517,1707834641831,-66393.00165653,0.0003288,2]
[313929520,1707834641843,-510.98056953,0.0003288,2]
[313929522,1707834641859,-725.0,0.0003288,2]
[313929525,1707834641870,-11122.140695,0.0003288,2]
[313929527,1707834641881,-9780.0,0.0003288,2]
[313929529,1707834641892,-170509.49999998,0.0003288,2]
[313929532,1707834641907,-338.64724169,0.0003288,2]
[313929536,1707834641935,-1496.42778088,0.0003288,2]
[313929538,1707834641946,-258349.26551372,0.0003288,2]
[313929540,1707834641958,-497.32383824,0.0003288,2]
[313929542,1707834641969,-263.5,0.0003288,2]
[313929545,1707834641981,-458.58,0.0003288,2]
[313929547,1707834641992,-310.077,0.0003288,2]
[313929549,1707834642003,-9977.68790319,0.0003288,2]
[313929551,1707834642014,-2755.50000025,0.0003288,2]
[313929554,1707834642029,-2448.7,0.0003288,2]
[313929557,1707834642044,-1525.64759389,0.0003288,2]
[313929559,1707834642056,-1499.9277137,0.0003288,2]
[313929561,1707834642067,-1499.95530377,0.0003288,2]
[313929563,1707834642079,-1499.95722538,0.0003288,2]
[313929566,1707834642091,-1499.98728754,0.0003288,2]
[313929568,1707834642103,-1499.99865816,0.0003288,2]
[313929570,1707834642114,-777.2930811,0.0003288,2]
[313929572,1707834642125,-1195.000022,0.0003288,2]
[313929574,1707834642137,-2182.14076367,0.0003288,2]
[313929577,1707834642150,-298.33106,0.0003288,2]
[313929579,1707834642162,-455.20087013,0.0003288,2]
[313929581,1707834642174,-1913.26641095,0.0003288,2]
[313929584,1707834642189,-1089.08649526,0.0003288,2]
[313929674,1707834644046,-511.10728401,0.000327,2]
[313929675,1707834644063,-233.44202069,0.000327,2]
[313929676,1707834644073,-6379.2103922,0.0003288,2]
[313929677,1707834644084,-1286.87207086,0.0003288,2]
[313929678,1707834644096,-177632.40048578,0.0003288,2]
[313929679,1707834644107,-501.34354286,0.0003288,2]
[313929680,1707834644118,-3077.6682786,0.0003288,2]
[313929681,1707834644130,-1266.5382313,0.0003288,2]
[313929682,1707834644141,-20118.04675829,0.0003288,2]
[313929683,1707834644153,-25506.47671823,0.0003288,2]
[313929684,1707834644164,-251.9428799,0.0003288,2]
[313929685,1707834644175,-11109.81430993,0.0003288,2]
[313929686,1707834644189,-1096.09499976,0.0003288,2]
[313929687,1707834644200,-491.07152,0.0003288,2]
[313929688,1707834644211,-1527.69938051,0.0003288,2]
[313929689,1707834644233,-35165.20508208,0.0003288,2]
[313929690,1707834644247,-690.57972946,0.0003288,2]
[313929691,1707834644262,-1764.87255381,0.0003288,2]
[313929692,1707834644274,-5282.22848816,0.0003288,2]
[313929693,1707834644286,-509.97735385,0.0003288,2]
[313929694,1707834644297,-1047.78250452,0.0003288,2]
[313929695,1707834644308,-2008.53275795,0.0003288,2]
[313929696,1707834644320,-4532.78072276,0.0003288,2]
[313929697,1707834644332,-4147.91875613,0.0003288,2]
[313929698,1707834644345,-593.044217,0.0003288,2]
[313929699,1707834644356,-1032.92800131,0.0003288,2]
[313929700,1707834644368,-538.259,0.0003288,2]
[313929701,1707834644440,-324623.7790167,0.0003288,2]
[313929729,1707834645952,-1306.00000001,0.00027797,2]
[313929731,1707834645963,-1874.69424568,0.00027797,2]
[313929732,1707834645973,-500.0,0.00028767,2]
[313929733,1707834645983,-42.27517944,0.00028767,2]
[313929734,1707834645995,-457.72482056,0.00028767,2]
[313929736,1707834646005,-500.0,0.00029041,2]
[313929738,1707834646015,-500.0,0.00029041,2]
[313929740,1707834646024,-500.0,0.00029315,2]
[313929742,1707834646034,-500.0,0.00029315,2]
[313929744,1707834646043,-477.09,0.00029589,2]
[313929746,1707834646053,-1960.45777083,0.0003288,2]
[313929758,1707834646161,-949.51922163,0.0003288,2]
[313929760,1707834646173,-707.74103951,0.0003288,2]
[313929762,1707834646251,-1238.75854667,0.0003288,2]
[313929763,1707834646262,-814.42004656,0.0003288,2]
[313929764,1707834646272,-1312.50000001,0.0003288,2]
[313929765,1707834646283,-2442.35,0.0003288,2]
[313929766,1707834646293,-1630.02048,0.0003288,2]
[313929767,1707834646304,-1319.9500015,0.0003288,2]
[313929768,1707834646317,-20722.86036609,0.0003288,2]
[313929769,1707834646334,-1972.517,0.0003288,2]
[313929770,1707834646352,-977.52,0.0003288,2]
[313929771,1707834646363,-49185.36741421,0.0003288,2]
[313929772,1707834646374,-10774.9999974,0.0003288,2]
[313929773,1707834646385,-7070.68601987,0.0003288,2]
[313929774,1707834646397,-37341.60094725,0.0003288,2]
[313929775,1707834646437,-322170.04813624,0.0003288,2]
[313929776,1707834646457,-5056.53274308,0.0003288,2]
[313929777,1707834646467,-349.49914978,0.0003288,2]
[313929829,1707835197510,-1120.9215277,0.00026404,7]
[313929830,1707835207982,-156.10743605,0.00025568,2]
[313929831,1707835208002,-159.6500011,0.00025569,2]
[313929832,1707835208022,-2216.32103515,0.0002557,2]
[313929940,1707835832109,-1017.80749783,0.000245,2]
[313929942,1707835832119,-481.38,0.00024964,2]
[313929944,1707835832128,-350.0,0.00025,3]
[313929946,1707835832137,-168.32868177,0.00025678,2]
[313929948,1707835832147,-256.66620962,0.00025679,2]
[313929949,1707835832159,-689.82685257,0.00025679,2]
[313929950,1707835832170,-73.95160043,0.0002568,2]
[313929951,1707835832183,-1298.31797469,0.0002568,2]
[313929952,1707835832194,-262.34318511,0.0002568,2]
[313929953,1707835832206,-567.0516138,0.0002568,2]
[313929954,1707835832217,-658.25,0.0002568,2]
[313929955,1707835832229,-665.07287916,0.0002568,2]
[313929956,1707835832238,-817.37,0.00026412,2]
[313929957,1707835832248,-250.0,0.00026423,2]
[313929958,1707835832258,-138.57403751,0.00026482,2]
[313929959,1707835832270,-25.73596249,0.00026482,2]
[313929960,1707835832280,-150.0,0.0002654,2]
[313929961,1707835832289,-626.70852081,0.00026541,2]
[313929962,1707835832302,-3537.69147919,0.00026541,2]
[313929963,1707835832312,-150.99,0.00026541,2]
[313929964,1707835832321,-308.88,0.00026541,2]
[313929965,1707835832331,-308.82,0.00026628,2]
[313929966,1707835832341,-156.02207427,0.00026641,2]
[313929967,1707835832351,-534.95623358,0.00026641,2]
[313929968,1707835832360,-254.18256303,0.00026642,2]
[313929969,1707835832370,-1195.27505071,0.00026642,2]
[313929970,1707835832392,-1698.67939641,0.00026642,2]
[313929971,1707835832401,-458.41,0.00026642,2]
[313929972,1707835832411,-293.48945359,0.00026643,2]
[313929973,1707835832428,-759.8606458,0.00026643,2]
[313929974,1707835832440,-917.62,0.00026643,2]
[313929975,1707835832455,-704.21,0.00026643,2]
[313929976,1707835832472,-2464.18460252,0.00026643,2]
[313929977,1707835834708,-213.0,0.0002365,2]
[313929978,1707835834719,-363.32490571,0.00026643,2]
[313929979,1707835834782,-534.95623358,0.00024499,2]
[313929980,1707835834793,-2462.1240723,0.00026643,2]
[313929981,1707835834806,-1586.26468058,0.00026643,2]
[313929982,1707835834830,-12783.2210728,0.00026643,2]
[313929983,1707835834839,-1000.0,0.00026649,2]
[313929984,1707835834850,-869.46,0.0002665,2]
[313929985,1707835834860,-213.0,0.00026679,6]
[313929986,1707835834869,-2000.0,0.00026712,2]
[313929987,1707835834879,-500.0,0.00026796,2]
[313929988,1707835834889,-8882.31810977,0.00026799,2]
[313929989,1707835834898,-182.63,0.00026809,2]
[313929991,1707835834907,-152.28,0.00026875,2]
[313929993,1707835834916,-400.0,0.00027,3]